Cogmind - Beta 15 @@@ ROGUE MODE // 2025.07.07 @ 23:25:21 Player: thej Result: Self-destructed Performance ------------- Evolutions (2) 1000 Regions Visited (3) 600 Robots Destroyed (30) 150 Value Destroyed (672) 672 Prototype IDs (1) 20 Alien Tech Used (0) 0 Bonus (0) 0 TOTAL SCORE: 2442 Bonus ------- None Cogmind --------- Core Integrity 269/550 Matter 219/300 Energy 100/100 System Corruption 0% Temperature Cool (0) Movement Core (50) Location -8/Materials Parts ------- > --- POWER (1) -------- (None) > --- PROPULSION (3) --- (None) > --- UTILITY (3) ------ Signal Interpreter > --- WEAPON (4) ------- Flail > --- INVENTORY (5) ---- Micro Nuclear Core Armored Wheel Remote Datajack Peak State ------------ > --- POWER ------------ Micro Nuclear Core > --- PROPULSION ------- Armored Wheel Armored Wheel Armored Wheel > --- UTILITY ---------- Improved Heat Sink Signal Interpreter ECM Suite > --- WEAPON ----------- Improved EM Shotgun Heavy Assault Rifle Remote Datajack Flail > --- INVENTORY -------- Micro Nuclear Core Missile Launcher Remote Datajack Flail [Rating: 27] Favorites ----------- Power Light Nuclear Core Engine Ion Engine Power Core Light Nuclear Core Propulsion Wheel Treads Light Treads Leg Aluminum Leg Wheel Wheel Utility Signal Interpreter Device ECM Suite Processor Signal Interpreter Weapon Light Assault Rifle Energy Gun Small Laser Ballistic Gun Light Assault Rifle Launcher Missile Launcher Special Weapon Plasma Cutter Impact Weapon Flail Build | -11 -10 -9 -8 ------- Run | Yrd Mat Mat Mat Slots Evolved 4 | . . 2 2 Power . | . . . . Propulsion 1 | . . . 1 Utility 1 | . . 1 . Weapon 2 | . . 1 1 Parts Attached 35 | 6 13 10 6 Power 6 | 2 2 1 1 Engine 3 | 2 1 . . Core 3 | . 1 1 1 Reactor . | . . . . Propulsion 12 | 2 4 4 2 Treads 1 | . 1 . . Leg 5 | . 3 2 . Wheel 6 | 2 . 2 2 Hover . | . . . . Flight . | . . . . Utility 4 | . 4 . . Device 3 | . 3 . . Storage . | . . . . Processor 1 | . 1 . . Hackware . | . . . . Protection . | . . . . Artifact . | . . . . Weapon 13 | 2 3 5 3 Energy Gun 4 | 1 1 2 . Energy Cannon . | . . . . Ballistic Gun 4 | 1 2 . 1 Ballistic Cannon . | . . . . Launcher 1 | . . 1 . Special Weapon 2 | . . 1 1 Impact Weapon 2 | . . 1 1 Slashing Weapon . | . . . . Piercing Weapon . | . . . . Special Melee Weapon . | . . . . Unidentified Prototypes . | . . . . Parts Lost 17 | . 5 1 11 Power 1 | . . . 1 Propulsion 5 | . 2 . 3 Utility 3 | . 1 . 2 Weapon 8 | . 2 1 5 Highest Loss Streak 11 | . 3 1 11 To Critical Strikes . | . . . . Average Backups 2 | . . 3 4 Power . | . . . 1 Propulsion . | . . 1 . Utility . | . . . . Weapon . | . . 1 1 Tool/Special . | . . . . Unused Backups 4 | 1 . . 3 Power 1 | . . . 1 Propulsion 1 | . . . 1 Utility . | . . . . Weapon 1 | 1 . . . Tool/Special 1 | . . . 1 Average Slot Usage (%) 91 | . 87 96 92 Engine 6 | . 12 . . Core 5 | . 1 11 9 Treads 2 | . 4 . . Leg 7 | . 1 17 . Wheel 14 | . 19 4 24 Device 15 | . 11 20 16 Processor 12 | . 13 11 9 Energy Gun 7 | . 7 8 7 Ballistic Gun 9 | . 14 4 7 Launcher 2 | . . 6 2 Special Weapon 2 | . . 5 6 Impact Weapon 4 | . . 7 9 Peak Build Rating 27 | 5 9 21 27 Average Rating 12 | 4 6 17 24 On Entrance 8 | . 5 9 21 Naked Turns . | . . . . Heaviest Build 23 | 5 9 19 23 Greatest Support 36 | 20 20 24 36 Greatest Overweight (x) . | . . . . Average Overweight (x) . | . . . . Largest Inventory Capacity 5 | 5 5 5 5 Average Capacity 5 | 5 5 5 5 Most Carried 5 | 2 5 5 5 Average Carried 2 | . . 3 4 Final Capacity 5 | 5 5 5 5 Final Carried 5 | . 1 5 3 Class Distribution -------------------- 76% | Mutant 10% | Scavenger-Gunner 10% | Gunner Dominant Class ---------------- Mutant | -10/Materials Mutant | -9/Materials Gunner | -8/Materials Resources | -11 -10 -9 -8 ----------- Run | Yrd Mat Mat Mat Matter Collected 626 | 273 141 171 41 Remotely . | . . . . Salvage Created 786 | 126 431 167 62 Parts 66 | 14 33 12 7 Haulers Intercepted . | . . . . Recyclers Shooed . | . . . . Parts Field Recycled . | . . . . Retrieved Matter . | . . . . Parts Self-Destructed . | . . . . Prevented . | . . . . Kills | -11 -10 -9 -8 ------- Run | Yrd Mat Mat Mat Combat Hostiles Destroyed 19 | 1 13 4 1 Guns 15 | 1 13 1 . Cannons 1 | . . 1 . AOE 2 | . . 1 1 Classes Destroyed 7 | 3 2 1 1 Worker 2 | 1 1 . . Builder 3 | . . . 3 Tunneler 4 | 4 . . . Watcher 2 | . 2 . . Swarmer 6 | . 6 . . Grunt 12 | 1 7 3 1 Sentry 1 | . . 1 . Best Kill Streak 6 | 6 3 1 4 Combat Bots Only 3 | 1 3 1 1 Max Kills in Single Turn 2 | 1 1 1 2 Gunslinging . | . . . . Exploded 1 | . . 1 1 Melee . | . . . . Uniques/NPCs Destroyed . | . . . . Combat | -11 -10 -9 -8 -------- Run | Yrd Mat Mat Mat Hostile Shots Fired 213 | 2 80 33 98 Missed 54 | . 19 10 25 Hits 159 | 2 61 23 73 Projectile 159 | 2 61 23 73 Critical Strikes 3 | . 3 . . Damage Taken 2212 | 23 673 326 1190 Core 586 | . 188 117 281 Absorbed by Shields . | . . . . Regen/Repaired (Parts) 45 | . 45 . . Core Remaining (%) 64 | 100 24 70 . Volleys Fired 106 | 13 66 18 9 Largest 3 | 2 2 3 2 Hottest 80 | 60 60 80 59 Shots Fired 163 | 26 97 29 11 Gun 143 | 26 97 15 5 Cannon . | . . . . Launcher 5 | . . 1 4 Special 15 | . . 13 2 Kinetic 92 | 13 68 6 5 Thermal 61 | 13 29 19 . Explosive 5 | . . 1 4 Electromagnetic 3 | . . 3 . Robot Hit Streak 11 | 7 11 5 6 Robot Miss Streak 4 | 1 4 3 1 Penetration Max . | . . . . Secondary Targets 1 | . 1 . . Max Gunslinging Chain 1 | . 1 . . Shots Hit Robots 108 | 16 61 21 10 Core Hits 58 | 9 31 8 10 Critical Kills . | . . . . Critical Parts Destroyed . | . . . . Critical Strikes . | . . . . Melee Attacks 17 | . . 9 8 Impact 17 | . . 9 8 Slashing . | . . . . Piercing . | . . . . Sneak Attacks . | . . . . Combat Hostiles . | . . . . Follow-up Attacks . | . . . . Damage Inflicted 1818 | 147 581 461 629 Guns 923 | 147 578 138 60 Cannons . | . . . . Explosions 539 | . . 86 453 Melee 293 | . . 177 116 Ramming 3 | . 3 . . Kinetic 516 | 60 373 23 60 Thermal 488 | 87 205 196 . Explosive 459 | . . 6 453 Electromagnetic 59 | . . 59 . Impact 293 | . . 177 116 Slashing . | . . . . Piercing . | . . . . Highest Corruption . | . . . . Average Corruption . | . . . . Corruption Purged . | . . . . Corruption Blocked . | . . . . Overload Shots . | . . . . Overflow Damage 70 | . . 23 47 Projectiles . | . . . . Explosions 53 | . . 6 47 Melee 17 | . . 17 . Knockbacks . | . . . . Impact . | . . . . Kinetic . | . . . . Secondary . | . . . . Self-Inflicted Damage 162 | . . 47 115 Shots 4 | . . 2 2 Rammed 1 | . 1 . . Targets Rammed 2 | . 2 . . Kicked . | . . . . Crushed 1 | . 1 . . Highest Temperature 103 | 40 103 29 . Average Temperature 32 | 22 38 12 . Received Heat Transfer 762 | 12 261 147 342 Siege Activations . | . . . . Martial Activations . | . . . . Shielding Activations . | . . . . Robots Disrupted . | . . . . Combat Hostiles . | . . . . Robots Corrupted 1 | . . 1 . Combat Hostiles 1 | . . 1 . Parts Fried . | . . . . Impact Corruptions 2 | . . 2 . Robots Melted . | . . . . Combat Hostiles . | . . . . Parts Melted . | . . . . Heat Transferred 1097 | 200 450 447 . Parts Sabotaged . | . . . . Parts Stolen . | . . . . Parts Stripped . | . . . . Power Chain Reactions 2 | . . 2 . Alert | -11 -10 -9 -8 ------- Run | Yrd Mat Mat Mat Maximum Alert Level . | . . . . Low Security (%) 100 | 100 100 100 100 Level 1 . | . . . . Level 2 . | . . . . Level 3 . | . . . . Level 4 . | . . . . Level 5 . | . . . . High Security . | . . . . Max Security . | . . . . Peak Influence 87 | 26 87 68 45 Initial 33 | . 13 33 20 Average 18 | 9 27 14 6 Influence Increases 603 | 46 346 146 65 Destroy 0b10 Robot/C 380 | 20 260 80 20 Destroy 0b10 Robot/NC 55 | 25 15 . 15 Destroy Leader 74 | . 54 20 . Successful Hack 4 | . 2 2 . Disable Machine 45 | . . 30 15 Destroy Structure 30 | 1 . 14 15 Partial Spotted 15 | . 15 . . Influence Decreases 603 | 25 288 176 114 Entered New Map 83 | . 8 46 29 Time Decay 438 | 25 248 130 35 Lost Part 82 | . 32 . 50 Squads Dispatched 3 | . 1 . 2 Investigation . | . . . . Extermination . | . . . . Reinforcement 3 | . 1 . 2 Assault . | . . . . Garrison . | . . . . Intercept . | . . . . Searches Triggered . | . . . . Construction Impeded 1 | . . . 1 Haulers Reinforced . | . . . . Active Scanning Responses . | . . . . Cargo Convoy Interrupts . | . . . . Stealth | -11 -10 -9 -8 --------- Run | Yrd Mat Mat Mat Distress Signals 6 | . 5 . 1 Communications Jammed . | . . . . Distress Signals . | . . . . Times Spotted 48 | 1 24 13 10 Peak Tracking Total 7 | 1 5 4 7 Tactical Retreats 6 | . 3 2 1 Traps | -11 -10 -9 -8 ------- Run | Yrd Mat Mat Mat Traps Triggered 1 | . 1 . . Indirectly . | . . . . Trap Hack Attempts . | . . . . Triggered . | . . . . Disarmed . | . . . . Reprogrammed . | . . . . Reused . | . . . . Traps Extracted . | . . . . Installed . | . . . . Triggered . | . . . . Machines | -11 -10 -9 -8 ---------- Run | Yrd Mat Mat Mat Machines Disabled 3 | . . 2 1 Max in Single Turn 1 | . . 1 1 Machines Repaired . | . . . . Machines Dismantled 1 | . . 1 . Machines Sabotaged . | . . . . Overloaded Fab Kills . | . . . . Hacking | -11 -10 -9 -8 --------- Run | Yrd Mat Mat Mat Machines Accessed 7 | . 4 2 1 Terminals 5 | . 3 1 1 Fabricators . | . . . . Repair Stations 1 | . 1 . . Recycling Units . | . . . . Scanalyzers 1 | . . 1 . Garrison Access . | . . . . Total Hacks 22 | . 8 12 2 Successful 20 | . 8 11 1 Failed 2 | . . 1 1 Catastrophic . | . . . . Database Lockouts . | . . . . Manual . | . . . . Terminals 9 | . 6 1 2 Fabricators . | . . . . Repair Stations 2 | . 2 . . Recycling Units . | . . . . Scanalyzers 11 | . . 11 . Garrison Access . | . . . . Terminal Hacks 8 | . 6 1 1 Record 6 | . 5 1 . Alert Level 2 | . 1 . 1 Fabricator Hacks . | . . . . Repair Station Hacks 2 | . 2 . . Scan Component 1 | . 1 . . Repair 1 | . 1 . . Recycling Unit Hacks . | . . . . Scanalyzer 10 | . . 10 . Insert Component 5 | . . 5 . Analyze 5 | . . 5 . Garrison Access Hacks . | . . . . Unauthorized Hacks . | . . . . Terminals . | . . . . Fabricators . | . . . . Repair Stations . | . . . . Recycling Units . | . . . . Scanalyzers . | . . . . Garrison Access . | . . . . Data Cores Recovered . | . . . . Used . | . . . . Hacking Detections 4 | . 2 1 1 Full Trace Events . | . . . . Feedback Events . | . . . . Feedback Blocked . | . . . . Robot Schematics Acquired . | . . . . Robots Built . | . . . . Authchips . | . . . . Time . | . . . . Total Robot Build Rating . | . . . . Part Schematics Acquired 5 | . . 5 . Parts Built . | . . . . Authchips . | . . . . Time . | . . . . Total Part Build Rating . | . . . . Parts Repaired 1 | . 1 . . Time 26 | . 26 . . Parts Recycled . | . . . . Recycled Matter . | . . . . Retrieved Matter . | . . . . Retrieved Components . | . . . . Parts Scanalyzed 5 | . . 5 . Part Schematics Acquired 5 | . . 5 . Parts Damaged . | . . . . Bothacking | -11 -10 -9 -8 ------------ Run | Yrd Mat Mat Mat Used RIF Installer . | . . . . Robots Hacked 1 | . . . 1 Non-combat . | . . . . Combat 1 | . . . 1 Robot Hacks Applied 1 | . . . 1 parse_system 1 | . . . 1 Relay Couplers Released . | . . . . Fabnet Peak Effective % . | . . . . Robots Rewired . | . . . . Allies Hacked . | . . . . Hacks Repelled . | . . . . Allies | -11 -10 -9 -8 -------- Run | Yrd Mat Mat Mat Total Allies . | . . . . Largest Group . | . . . . Highest-Rated Group . | . . . . Highest-Rated Ally . | . . . . Total Orders . | . . . . Ally Attacks . | . . . . Total Damage . | . . . . Kills . | . . . . Allies Corrupted . | . . . . Allies Melted . | . . . . Intel | -11 -10 -9 -8 ------- Run | Yrd Mat Mat Mat Active Infowar (turns) 1153 | . 457 535 161 Sensors 250 | . 250 . . ECM 903 | . 207 535 161 Robot Analysis Total . | . . . . Derelict Logs Recovered . | . . . . Drone Launches . | . . . . Drone Recoveries . | . . . . Exploration | -11 -10 -9 -8 ------------- Run | Yrd Mat Mat Mat Turns Passed 1543 | 117 696 535 195 Spaces Moved 1113 | 89 499 375 150 Core 19 | 19 . . . Treads 112 | . 112 . . Legs 302 | . 58 244 . Wheels 680 | 70 329 131 150 Hover . | . . . . Flight . | . . . . Fastest Speed 50 | 50 80 90 90 Average Speed 100 | 73 102 109 90 Slowest Speed 160 | 80 160 120 90 Overloaded Moves . | . . . . Propulsion Burnouts . | . . . . Robots Hopped . | . . . . Potential Cave-ins . | . . . . Cave-ins Triggered . | . . . . Exploration Rate (%) 30 | 9 59 34 19 Regions Visited 3 Branch Regions . Pre-discovered Areas . | . . . . Known Exits Taken 2 | . 1 1 . Unknown Exits Taken 1 | 1 . . . Scrap Searched . | . . . . Spaces Dug . | . . . . Terrain Destroyed 32 | . . 13 19 Melee . | . . . . Projectile . | . . . . AOE 32 | . . 13 19 Terrain Rammed . | . . . . Walls Destroyed . | . . . . Machines Disabled . | . . . . Actions | -11 -10 -9 -8 --------- Run | Yrd Mat Mat Mat Total 1349 | 117 602 442 188 Wait 1 | 1 . . . Move 1110 | 88 498 374 150 Hop . | . . . . Pick Up 40 | 7 14 14 5 Fast Attach . | . . . . Attach 35 | 5 13 11 6 Detach 8 | . 3 3 2 Swap 7 | 1 1 1 4 Drop 18 | 2 5 7 4 Fire 106 | 13 66 18 9 Melee 17 | . . 9 8 Ram . | . . . . Kick . | . . . . Crush 2 | . 2 . . Escape Stasis . | . . . . Rewire . | . . . . Trap . | . . . . Miscellaneous 5 | . . 5 . Route ------- -11/Scrapyard -10/Materials (discovered 2 exits: *Mat x2) -9/Materials -8/Materials History --------- Turn | Location | Event 2 | -11/Scrapyard | Met Revision 17 63 | -11/Scrapyard | Discovered new exit (range 8) 118 | -11/Scrapyard | Entered Materials 227 | -10/Materials | Repaired Sml. Laser 307 | -10/Materials | Build established: Mutant 392 | -10/Materials | Discovered new exit (range 16) 485 | -10/Materials | Core integrity fell below 50% 503 | -10/Materials | Lost 3 parts (1n1u1w) 807 | -10/Materials | Discovered new exit (range 3) 808 | -10/Materials | Identified exit to Materials 814 | -10/Materials | Entered another Materials area 814 | -9/Materials | Evolved 2 slots: Utility x1, Weapon x1 1169 | -9/Materials | Discovered new exit (range 13) 1348 | -9/Materials | Identified exit to Materials 1349 | -9/Materials | Entered another Materials area 1349 | -8/Materials | Evolved 2 slots: Propulsion x1, Weapon x1 1544 | -8/Materials | Core integrity fell below 50% 1544 | -8/Materials | Self-destructed Last Messages --------------- G-47 Trooper destroyed. U-05 Engineer lays Concrete. R-06 Scavenger collects Aluminum Leg. Flail destroyed. U-05 Engineer lays Concrete. Acquired 41 matter. U-05 Engineer lays Concrete. Slug penetrates U-05 Engineer. Terminal disabled. U-05 Engineer lays Concrete. Arm. Wheel destroyed. U-05 Engineer lays Concrete. W-25 Informer sends out distress signal. U-05 Engineer lays Concrete. Remote Datajack destroyed. U-05 Engineer lays Concrete. Imp. Heat Sink destroyed. Mic. Nuclear Core destroyed. Penetrated by Slug. U-05 Engineer lays Concrete. Map ----- +----------------------------------------------------+ | ?????????????????????????????????????????????????? | | ?????????????????????????????????????????????????? | | ?????????????????????????????????????????????????? | | ?????????????????????????????????????????????????? | | ?????????????????????????????????????????????????? | | ?????????????????????????????????????????????????? | | ?????????????????????????????????????????????????? | | ?????????????????????????????????????????????????? | | ?????????????????????????????????????????????????? | | ?????????????????????????????????????????????????? | | ?????????????????????????????????????????????????? | | ?????????????????????????????????????????????????? | | ?????????????????????????????????????????????????? | | ?????????????????????????????????????????????????? | | ??????????????????????????????????????????????#### | | ??????????????????????????????????????????????# | | ????????????????##????????????????????????????# | | ????????????????# ???????????????????????????#"" | | ??????????????### = ??????????????????????????#"Y | | ??????????????# !%!#######???????????????????#"" | | ????????????### ]# #???????????????????# | | ??????????? ! #################+### | | ???????????g % | | ???????????? w u | | ??????????????## Y r | | ???????????????# # @ ########### | | ??????????????????# u #?# # | | ??????????????????# %u """ #?# """ # | | ??????????????????# T hg "" #?# """ + | | ????????????????# # " t " #?# """ # | | ???????????????? #?# # | | ???????????????## # #?######### | | ????????????????#?####+###########+#####??????# | | ????????????????????? ???????# #??????# | | ???????????????????? ???????# ] #??????# | | ???????????????????"""????????# ######## | | ??????????????????#"R ????????# # | | ??????????????????????????????#/ + | | ??????????????????????????????# # | | ??????????????????????????????# # ### | | ??????????????????????????????# # #?? | | ??????????????????????????????# + #?? | | ??????????????????????????????##########+##### #?? | | ??????????????????????????????????????# ]??# #?? | | ??????????????????????????????????????# # #?? | | ??????????????????????????????????????#[ # #?? | | ??????????????????????????????????????# !! # #?? | | ??????????????????????????????????????#/ !! !# #?? | | ??????????????????????????????????????# # ??? | | ??????????????????????????????????????######## ??? | +----------------------------------------------------+ Best States ------------- Heat Dissipation 45 Energy Generation 15 Energy Capacity 250 Matter Stores 300 Matter Capacity 300 Sight Range 16 Robot Scan Range 14 Terrain Scan Density 10 ECM Strength 1 Evasion (%) 55 Recoil Reduction 1 Item Schematics ----------------- Lgt. Nuclear Core | -9/Materials | Scanalyzed Sml. Laser | -9/Materials | Scanalyzed Aluminum Leg | -9/Materials | Scanalyzed Imp. EM Shotgun | -9/Materials | Scanalyzed Imp. Heat Sink | -9/Materials | Scanalyzed Robot Schematics ------------------ None Fabricated ------------ Nothing Repaired ---------- Sml. Laser | 35% | -10/Materials Alien Tech Used ----------------- None Achievements -------------- Power Corrupts Safety First Challenges ------------ None Game ------ Seed CommHardlightSink Manual? 0 Play Time 00:50:58 Cumulative 1.9 hours Start 2025.07.07 @ 22:11:11 End 2025.07.07 @ 23:25:21 Sessions 1 Manual Loads 0 Difficulty Rogue Special Mode None Game No. 3 Rogue 3 Adventurer 0 Explorer 0 Win Type - Total 0 Types 0/0/0/0/0/0/0/0/0/0 Lore% 1 Gallery% 4 Achievement% 4 Wizard Run 0 Options --------- Layout 1 ASCII 0 Keyboard 0 Movement Mouse Keybinds 0 Fullscreen 1 Font 24/Smallcaps Map View 50x35 Zoom Use 0% Tactical HUD 0 Map Filters NONE Filters NONE Steam 1 RUN: 074ba36e-eca2-435c-837f-2d3389752263